fUST/lending_fUST_20250504
["ID","MTS","AMOUNT","RATE_DAILY","PERIOD"]
[359831831,1746361840287,-400.0,0.00038904,15]
[359831832,1746361840298,-400.0,0.00038904,15]
[359831833,1746361840310,-400.0,0.00038904,15]
[359831834,1746361840322,-400.0,0.00038904,15]
[359831835,1746361840333,-400.0,0.00038904,15]
[359831836,1746361840345,-400.0,0.00038904,15]
[359831837,1746361840356,-400.0,0.00038904,15]
[359831838,1746361840367,-400.0,0.00038904,15]
[359831839,1746361840378,-400.0,0.00038904,15]
[359831840,1746361840389,-400.0,0.00038904,15]
[359831841,1746361840400,-400.0,0.00038904,15]
[359831842,1746361840411,-545.02,0.00038904,15]
[359831843,1746361840422,-400.0,0.00038904,15]
[359831844,1746361840433,-446.75,0.00038904,15]
[359831845,1746361840444,-400.0,0.00038904,15]
[359831846,1746361840456,-400.0,0.00038904,15]
[359831847,1746361840467,-450.48179807,0.00038904,15]
[359831848,1746361840479,-400.0,0.00038904,15]
[359831849,1746361840491,-400.0,0.00038904,15]
[359831851,1746361840502,-400.0,0.00038904,15]
[359831853,1746361840513,-400.0,0.00038904,15]
[359831855,1746361840522,-400.0,0.00038904,15]
[359831857,1746361840532,-400.0,0.00038904,15]
[359831859,1746361840543,-400.0,0.00038904,15]
[359831861,1746361840553,-341.95206624,0.00038904,15]
[359831863,1746361840564,-535.02,0.00038904,15]
[359831865,1746361840575,-400.0,0.00038904,15]
[359831868,1746361840585,-400.0,0.00038904,15]
[359831870,1746361840596,-180.04,0.00038904,15]
[359831872,1746361840608,-400.0,0.00038904,15]
[359831874,1746361840619,-400.0,0.00038904,15]
[359831876,1746361840631,-400.0,0.00038904,15]
[359831879,1746361840642,-400.0,0.00038904,15]
[359831881,1746361840653,-252.5,0.00038904,15]
[359831883,1746361840664,-400.0,0.00038904,15]
[359831885,1746361840676,-400.0,0.00038904,15]
[359831888,1746361840687,-400.0,0.00038904,15]
[359831890,1746361840699,-407.74207944,0.00038904,15]
[359831892,1746361840710,-491.88,0.00038904,15]
[359831894,1746361840721,-400.0,0.00038904,15]
[359831897,1746361840731,-400.0,0.00038904,15]
[359831899,1746361840743,-400.0,0.00038904,15]
[359831900,1746361840754,-279.1514496,0.00038904,15]
[359831902,1746361840763,-446.14,0.00038904,15]
[359831904,1746361840774,-400.0,0.00038904,15]
[359831906,1746361840784,-505.02,0.00038904,15]
[359831908,1746361840795,-400.0,0.00038904,15]
[359831910,1746361840807,-400.0,0.00038904,15]
[359831912,1746361840819,-400.0,0.00038904,15]
[359831915,1746361840829,-400.0,0.00038904,15]
[359831917,1746361840841,-400.0,0.00038904,15]
[359831919,1746361840851,-400.0,0.00038904,15]
[359831921,1746361840865,-400.0,0.00038904,15]
[359831923,1746361840875,-400.0,0.00038904,15]
[359831925,1746361840886,-400.0,0.00038904,15]
[359831927,1746361840896,-400.0,0.00038904,15]
[359831929,1746361840907,-400.0,0.00038904,15]
[359831932,1746361840918,-400.0,0.00038904,15]
[359831934,1746361840930,-400.0,0.00038904,15]
[359831936,1746361840942,-400.0,0.00038904,15]
[359831938,1746361840952,-400.0,0.00038904,15]
[359831940,1746361840962,-400.0,0.00038904,15]
[359831942,1746361840972,-231.73,0.00038904,15]
[359831944,1746361840982,-400.0,0.00038904,15]
[359831946,1746361840992,-400.0,0.00038904,15]
[359831948,1746361841003,-400.0,0.00038904,15]
[359831950,1746361841013,-449.32,0.00038904,15]
[359831953,1746361841023,-200.0,0.00038904,15]
[359831955,1746361841035,-400.0,0.00038904,15]
[359831957,1746361841047,-400.0,0.00038904,15]
[359831959,1746361841057,-400.0,0.00038904,15]
[359831961,1746361841067,-400.0,0.00038904,15]
[359831962,1746361841078,-400.0,0.00038904,15]
[359831964,1746361841088,-400.0,0.00038904,15]
[359831966,1746361841099,-543.37,0.00038904,15]
[359831968,1746361841110,-400.0,0.00038904,15]
[359831971,1746361841121,-300.0,0.00038904,15]
[359831973,1746361841133,-400.0,0.00038904,15]
[359831975,1746361841143,-234.99,0.00038904,15]
[359831977,1746361841153,-400.0,0.00038904,15]
[359831979,1746361841164,-400.0,0.00038904,15]
[359831981,1746361841174,-400.0,0.00038904,15]
[359831983,1746361841185,-178.81,0.00038904,15]
[359831986,1746361841195,-400.0,0.00038904,15]
[359831988,1746361841205,-242.38,0.00038904,15]
[359831990,1746361841216,-400.0,0.00038904,15]
[359831992,1746361841226,-400.0,0.00038904,15]
[359831994,1746361841236,-400.0,0.00038904,15]
[359831996,1746361841247,-210.93,0.00038904,15]
[359831998,1746361841257,-456.92259359,0.00038904,15]
[359832000,1746361841268,-400.0,0.00038904,15]
[359832002,1746361841278,-400.0,0.00038904,15]
[359832004,1746361841288,-417.21,0.00038904,15]
[359832006,1746361841299,-400.0,0.00038904,15]
[359832008,1746361841309,-167.0,0.00038904,15]
[359832010,1746361841319,-400.0,0.00038904,15]
[359832012,1746361841329,-400.0,0.00038904,15]
[359832014,1746361841340,-400.0,0.00038904,15]
[359832016,1746361841351,-400.0,0.00038904,15]
[359832019,1746361841362,-400.0,0.00038904,15]
[359832020,1746361841372,-491.74,0.00038904,15]
[359832023,1746361841383,-184.47634469,0.00038904,15]
[359832025,1746361841393,-400.0,0.00038904,15]
[359832027,1746361841404,-400.0,0.00038904,15]
[359832029,1746361841415,-169.46,0.00038904,15]
[359832031,1746361841426,-400.0,0.00038904,15]
[359832033,1746361841438,-400.0,0.00038904,15]
[359832054,1746361841616,-400.0,0.00038904,15]
[359832057,1746361841636,-480.88,0.00038904,15]
[359832059,1746361841646,-524.86,0.00038904,15]
[359832061,1746361841655,-400.0,0.00038904,15]
[359832063,1746361841665,-532.22,0.00038904,15]
[359832065,1746361841674,-400.0,0.00038904,15]
[359832067,1746361841683,-533.18,0.00038904,15]
[359832069,1746361841693,-400.0,0.00038904,15]
[359832071,1746361841702,-225.25,0.00038904,15]
[359832073,1746361841711,-400.0,0.00038904,15]
[359832075,1746361841720,-400.0,0.00038904,15]
[359832077,1746361841730,-400.0,0.00038904,15]
[359832079,1746361841739,-400.0,0.00038904,15]
[359832081,1746361841748,-206.95,0.00038904,15]
[359832083,1746361841757,-400.0,0.00038904,15]
[359832085,1746361841766,-400.0,0.00038904,15]
[359832087,1746361841775,-460.65,0.00038904,15]
[359832089,1746361841784,-400.0,0.00038904,15]
[359832091,1746361841794,-544.72,0.00038904,15]
[359832093,1746361841803,-400.0,0.00038904,15]
[359832095,1746361841813,-197.94,0.00038904,15]
[359832097,1746361841822,-400.0,0.00038904,15]
[359832099,1746361841831,-400.0,0.00038904,15]
[359832101,1746361841841,-400.0,0.00038904,15]
[359832103,1746361841850,-299.89609169,0.00038904,15]
[359832106,1746361841874,-145.26390831,0.00038904,15]
[359832108,1746361841883,-400.0,0.00038904,15]
[359832110,1746361841892,-278.63,0.00038904,15]
[359832113,1746361841903,-400.0,0.00038904,15]
[359832115,1746361841912,-400.0,0.00038904,15]
[359832117,1746361841922,-359.98,0.00038904,15]
[359832119,1746361841931,-400.0,0.00038904,15]
[359832121,1746361841942,-400.0,0.00038904,15]
[359832123,1746361841951,-500.0,0.00038904,15]
[359832125,1746361841960,-400.0,0.00038904,15]
[359832127,1746361841970,-400.0,0.00038904,15]
[359832129,1746361841979,-475.28,0.00038904,15]
[359832131,1746361841989,-400.0,0.00038904,15]
[359832133,1746361841998,-400.0,0.00038904,15]
[359832135,1746361842007,-400.0,0.00038904,15]
[359832137,1746361842016,-500.01,0.00038904,15]
[359832139,1746361842025,-505.21,0.00038904,15]
[359832141,1746361842034,-400.0,0.00038904,15]
[359832143,1746361842043,-400.0,0.00038904,15]
[359832144,1746361842052,-463.53,0.00038904,15]
[359832146,1746361842061,-400.0,0.00038904,15]
[359832149,1746361842071,-400.0,0.00038904,15]
[359832151,1746361842081,-400.0,0.00038904,15]
[359832153,1746361842090,-400.0,0.00038904,15]
[359832155,1746361842099,-37.47349135,0.00038904,15]
[359832157,1746361842112,-362.52650865,0.00038904,15]
[359832159,1746361842121,-343.42715644,0.00038904,15]
[359832162,1746361842135,-468.99,0.00038904,15]
[359832164,1746361842144,-514.2,0.00038904,15]
[359832166,1746361842154,-400.0,0.00038904,15]
[359832168,1746361842163,-400.0,0.00038904,15]
[359832170,1746361842173,-400.0,0.00038904,15]
[359832172,1746361842182,-400.0,0.00038904,15]
[359832174,1746361842191,-400.0,0.00038904,15]
[359832176,1746361842201,-400.0,0.00038904,15]
[359832178,1746361842211,-400.0,0.00038904,15]
[359832180,1746361842220,-400.0,0.00038904,15]
[359832182,1746361842231,-450.32,0.00038904,15]
[359832184,1746361842240,-415.16043103,0.00038904,15]
[359832185,1746361842250,-400.0,0.00038904,15]
[359832188,1746361842260,-400.0,0.00038904,15]
[359832190,1746361842271,-400.0,0.00038904,15]
[359832192,1746361842280,-400.0,0.00038904,15]
[359832194,1746361842290,-400.0,0.00038904,15]
[359832196,1746361842300,-507.47,0.00038904,15]
[359832198,1746361842310,-400.0,0.00038904,15]
[359832200,1746361842319,-410.97,0.00038904,15]
[359832202,1746361842329,-400.0,0.00038904,15]
[359832204,1746361842338,-59.13590388,0.00038904,15]
[359832209,1746361842379,-340.86409612,0.00038904,15]
[359832211,1746361842389,-400.0,0.00038904,15]
[359832213,1746361842399,-400.0,0.00038904,15]
[359832216,1746361842408,-451.16003578,0.00038904,15]
[359832218,1746361842418,-400.0,0.00038904,15]
[359832220,1746361842427,-400.0,0.00038904,15]
[359832222,1746361842437,-400.0,0.00038904,15]
[359832224,1746361842446,-400.0,0.00038904,15]
[359832226,1746361842456,-400.0,0.00038904,15]
[359832228,1746361842466,-316.30355467,0.00038904,15]
[359832230,1746361842475,-400.0,0.00038904,15]
[359832232,1746361842485,-357.51,0.00038904,15]
[359832233,1746361842495,-400.0,0.00038904,15]
[359832236,1746361842505,-400.0,0.00038904,15]
[359832238,1746361842514,-455.65148939,0.00038904,15]
[359832240,1746361842524,-400.0,0.00038904,15]
[359832242,1746361842534,-400.0,0.00038904,15]
[359832244,1746361842543,-400.0,0.00038904,15]
[359832246,1746361842553,-356.25,0.00038904,15]
[359832248,1746361842562,-400.0,0.00038904,15]
[359832250,1746361842571,-400.0,0.00038904,15]
[359832252,1746361842583,-400.0,0.00038904,15]
[359832254,1746361842593,-400.0,0.00038904,15]
[359832256,1746361842603,-400.0,0.00038904,15]
[359832258,1746361842613,-400.0,0.00038904,15]
[359832260,1746361842623,-400.0,0.00038904,15]
[359832262,1746361842632,-130.25286714,0.00038904,15]
[359832271,1746361842714,-153.57843841,0.00038904,15]
[359832274,1746361842730,-184.33869445,0.00038904,15]
[359832276,1746361842741,-400.0,0.00038904,15]
[359832278,1746361842750,-400.0,0.00038904,15]
[359832280,1746361842760,-400.0,0.00038904,15]
[359832282,1746361842770,-95.06130559,0.00038904,15]
[359832285,1746361842787,-346.52869441,0.00038904,15]
[359832287,1746361842797,-400.0,0.00038904,15]
[359832289,1746361842806,-384.58,0.00038904,15]
[359832291,1746361842816,-400.0,0.00038904,15]
[359832293,1746361842826,-56.090031,0.00038904,15]
[359832705,1746361846753,-250.0,0.00038904,15]
[359832712,1746361846806,-127.649969,0.00038904,15]
[359832714,1746361846817,-400.0,0.00038904,15]
[359832716,1746361846827,-500.47,0.00038904,15]
[359832718,1746361846837,-400.0,0.00038904,15]
[359832720,1746361846847,-500.0,0.00038904,15]
[359832722,1746361846859,-500.0,0.00038904,15]
[359832724,1746361846869,-500.0,0.00038904,15]
[359832726,1746361846879,-500.0,0.00038904,15]
[359832728,1746361846889,-500.0,0.00038904,15]
[359832730,1746361846899,-500.0,0.00038904,15]
[359832732,1746361846908,-138.77692443,0.00038904,15]
[359832734,1746361846921,-361.22307557,0.00038904,15]
[359832736,1746361846931,-500.0,0.00038904,15]
[359832739,1746361846941,-400.0,0.00038904,15]
[359832742,1746361846951,-500.0,0.00038904,15]
[359832744,1746361846961,-500.0,0.00038904,15]
[359832747,1746361846970,-500.0,0.00038904,15]
[359832749,1746361846979,-500.0,0.00038904,15]
[359832751,1746361846989,-333.07971707,0.00038904,15]
[359832753,1746361846998,-446.77,0.00038904,15]
[359832755,1746361847007,-400.0,0.00038904,15]
[359832757,1746361847016,-155.56333471,0.00038904,15]
[359832759,1746361847026,-428.71,0.00038904,15]
[359832761,1746361847035,-400.0,0.00038904,15]
[359832763,1746361847044,-400.0,0.00038904,15]
[359832765,1746361847054,-400.0,0.00038904,15]
[359832767,1746361847063,-400.0,0.00038904,15]
[359832769,1746361847073,-509.22,0.00038904,15]
[359832771,1746361847082,-400.0,0.00038904,15]
[359832772,1746361847091,-400.0,0.00038904,15]
[359832774,1746361847101,-296.99,0.00038904,15]
[359832777,1746361847111,-400.0,0.00038904,15]
[359832779,1746361847121,-400.0,0.00038904,15]
[359832781,1746361847130,-400.0,0.00038904,15]
[359832783,1746361847140,-400.0,0.00038904,15]
[359832785,1746361847149,-400.0,0.00038904,15]
[359832787,1746361847158,-400.0,0.00038904,15]
[359832789,1746361847167,-400.0,0.00038904,15]
[359832791,1746361847177,-400.0,0.00038904,15]
[359832793,1746361847186,-400.0,0.00038904,15]
[359832795,1746361847196,-400.0,0.00038904,15]
[359832796,1746361847205,-259.0,0.00038904,15]
[359832799,1746361847215,-400.0,0.00038904,15]
[359832801,1746361847224,-400.0,0.00038904,15]
[359832803,1746361847234,-400.0,0.00038904,15]
[359832805,1746361847244,-400.0,0.00038904,15]
[359832807,1746361847253,-400.0,0.00038904,15]
[359832809,1746361847262,-400.0,0.00038904,15]
[359832811,1746361847271,-289.03,0.00038904,15]
[359832812,1746361847281,-400.0,0.00038904,15]
[359832814,1746361847290,-400.0,0.00038904,15]
[359832816,1746361847299,-400.0,0.00038904,15]
[359832818,1746361847309,-400.0,0.00038904,15]
[359832820,1746361847318,-509.37,0.00038904,15]
[359832822,1746361847327,-400.0,0.00038904,15]
[359832824,1746361847337,-432.49311301,0.00038904,15]
[359832826,1746361847346,-400.0,0.00038904,15]
[359832828,1746361847356,-274.48215382,0.00038904,15]
[359832831,1746361847370,-125.51784618,0.00038904,15]
[359832833,1746361847380,-400.0,0.00038904,15]
[359832835,1746361847390,-400.0,0.00038904,15]
[359832837,1746361847399,-400.0,0.00038904,15]
[359832839,1746361847409,-246.15,0.00038904,15]
[359832841,1746361847418,-400.0,0.00038904,15]
[359832843,1746361847427,-400.0,0.00038904,15]
[359832845,1746361847437,-400.0,0.00038904,15]
[359832847,1746361847447,-400.0,0.00038904,15]
[359832849,1746361847456,-400.0,0.00038904,15]
[359832851,1746361847466,-200.0,0.00038904,15]
[359832853,1746361847476,-400.0,0.00038904,15]
[359832855,1746361847486,-15.13102279,0.00038904,15]
[359832857,1746361847499,-384.86897721,0.00038904,15]
[359832859,1746361847508,-512.2,0.00038904,15]
[359832861,1746361847519,-400.0,0.00038904,15]
[359832863,1746361847530,-400.0,0.00038904,15]
[359832865,1746361847540,-400.0,0.00038904,15]
[359832867,1746361847550,-529.54462458,0.00038904,15]
[359832869,1746361847561,-400.0,0.00038904,15]
[359832871,1746361847570,-400.0,0.00038904,15]
[359832873,1746361847580,-297.34697048,0.00038904,15]
[359832875,1746361847592,-102.65302952,0.00038904,15]
[359832877,1746361847602,-400.0,0.00038904,15]
[359832880,1746361847613,-400.0,0.00038904,15]
[359832881,1746361847622,-400.0,0.00038904,15]
[359832884,1746361847632,-200.34697048,0.00038904,15]
[359832886,1746361847644,-199.65302952,0.00038904,15]
[359832888,1746361847653,-400.0,0.00038904,15]
[359832890,1746361847663,-400.0,0.00038904,15]
[359832892,1746361847673,-400.0,0.00038904,15]
[359832894,1746361847683,-250.27,0.00038904,15]
[359832896,1746361847692,-390.03061616,0.00038904,15]
[359832898,1746361847705,-9.96938384,0.00038904,15]
[359832900,1746361847715,-480.69258643,0.00038904,15]
[359832902,1746361847726,-39.10741357,0.00038904,15]
[359832904,1746361847736,-400.0,0.00038904,15]
[359832906,1746361847746,-323.20329474,0.00038904,15]
[359833252,1746361874451,250.0,0.00025005,2]
[359833263,1746361910563,725.2825995,0.00025005,2]
[359833264,1746361920258,280.14039261,0.00025205,2]
[359833274,1746362207078,-160.0,0.0002475,10]
[359833280,1746362533733,-250.0,0.00024258,10]
[359833300,1746362825131,-296.12914727,0.00024015,10]
[359833301,1746362825152,-25.53216698,0.00024015,2]
[359833303,1746362831088,-347.44998762,0.00024015,2]
[359833304,1746362831108,-199.0221442,0.00025,2]
[359833305,1746362831129,-160.0,0.00027,3]
[359833306,1746362831149,-160.0,0.00027,3]
[359833307,1746362831173,-400.245867,0.00027397,2]
[359833308,1746362831193,-152.0,0.00027397,3]
[359833309,1746362831214,-57.78062308,0.00027397,5]
[359833310,1746362844138,-273.8543368,0.00024953,10]
[359833311,1746362844166,-191.30608039,0.00027397,5]
[359833312,1746362844194,-262.390553,0.0002802,2]
[359833313,1746362844220,-154.52213824,0.00028067,2]
[359833314,1746362844248,-300.0,0.00028166,2]
[359833315,1746362844276,-1200.0,0.00028167,2]
[359833316,1746362844302,-180.0,0.00028167,2]
[359833317,1746362844329,-300.0,0.00028168,2]
[359833318,1746362844355,-300.0,0.00028168,2]
[359833319,1746362844383,-144.62521383,0.00028168,2]
[359833320,1746362848137,-155.37478617,0.00028168,2]
[359833321,1746362848161,-1768.6626046,0.00028169,2]
[359833393,1746363031904,-550.1456632,0.00024953,10]
[359833395,1746363031914,-162.00724352,0.00026069,2]
[359833397,1746363031923,-161.0,0.00027397,3]
[359833399,1746363031933,-300.0,0.00028168,2]
[359833401,1746363031943,-254.0,0.00028168,2]
[359833403,1746363031952,-1200.0,0.00028168,2]
[359833405,1746363031962,-300.0,0.00028168,2]
[359833407,1746363031971,-13924.0682696,0.00028169,2]
[359833409,1746363031981,-205.4217373,0.00028779,2]
[359833411,1746363031990,-800.83835223,0.00030315,2]
[359833413,1746363032000,-550.22942011,0.00030415,2]
[359833415,1746363032009,-50000.0,0.00030416,2]
[359833417,1746363032018,-420.0,0.00030417,2]
[359833418,1746363032028,-436.72994081,0.000305,5]
[359833419,1746363032037,-500.0,0.000305,5]
[359833420,1746363032047,-500.0,0.000305,5]
[359833421,1746363032056,-501.50146304,0.000305,5]
[359833422,1746363032066,-500.0,0.000305,5]
[359833423,1746363032075,-501.66452694,0.000305,5]
[359833425,1746363032085,-500.0,0.000305,5]
[359833427,1746363032094,-503.0692065,0.000305,5]
[359833429,1746363032104,-500.0,0.000305,2]
[359833431,1746363032114,-500.0,0.000305,5]
[359833433,1746363032124,-500.0,0.000305,5]
[359833435,1746363032133,-500.0,0.000305,5]
[359833437,1746363032143,-501.90141172,0.000305,3]
[359833440,1746363032152,-500.0,0.000305,5]
[359833442,1746363032162,-500.0,0.000305,5]
[359833444,1746363032171,-500.0,0.000305,5]
[359833446,1746363032181,-500.0,0.000305,5]
[359833447,1746363032190,-500.0,0.000305,5]
[359833448,1746363032200,-300.0,0.000305,5]
[359833449,1746363032209,-964.0,0.00030549,2]
[359833450,1746363032219,-162.00724352,0.00031069,2]
[359833451,1746363032228,-193.120276,0.00031397,2]
[359833452,1746363032242,-868.1989245,0.00031519,2]
[359833453,1746363032251,-800.83835222,0.00031673,2]
[359833454,1746363032260,-201.05876858,0.00031771,2]
[359833455,1746363032270,-500.0,0.00031781,2]
[359833456,1746363032281,-500.0,0.000318,5]
[359833457,1746363032291,-600.0,0.00032144,5]
[359833458,1746363032300,-664.0105039,0.00032507,2]
[359833459,1746363032315,-584.0,0.00032844,3]
[359833460,1746363032327,-868.95142386,0.00032877,2]
[359833461,1746363032338,-800.83835222,0.0003303,2]
[359833462,1746363032347,-400.245867,0.00033165,2]
[359833463,1746363032356,-160.0,0.00033329,2]
[359833464,1746363032366,-160.0,0.00033329,2]
[359833465,1746363032376,-346.21355338,0.00033788,5]
[359833466,1746363032386,-800.83835222,0.00034388,2]
[359833467,1746363032395,-151.0,0.00034416,2]
[359833468,1746363032405,-378.47126472,0.00034881,2]
[359833469,1746363032415,-203.9442843,0.00035238,120]
[359833470,1746363032424,-656.94,0.000353,7]
[359833471,1746363032434,-800.83835222,0.00035745,2]
[359833472,1746363032444,-1000.0,0.00035979,5]
[359833473,1746363032454,-500.0,0.00035979,5]
[359833474,1746363032463,-1000.0,0.00035979,5]
[359833475,1746363032473,-1000.0,0.00035979,5]
[359833476,1746363032483,-1000.0,0.00035979,5]
[359833477,1746363032492,-500.0,0.00035979,5]
[359833478,1746363032502,-1000.0,0.00035979,5]
[359833479,1746363032512,-500.0,0.00036012,60]
[359833480,1746363032522,-841.6056368,0.00036349,2]
[359833481,1746363032532,-160.0,0.0003635,2]
[359833482,1746363032542,-1631.97138941,0.00036367,2]
[359833483,1746363032552,-800.83835222,0.00037103,2]
[359833484,1746363032563,-500.0,0.00037108,60]
[359833485,1746363032573,-185.14,0.000375,2]
[359833486,1746363032582,-267.12771172,0.000377,2]
[359833487,1746363032592,-267.12771172,0.00037714,2]
[359833488,1746363032602,-267.12771172,0.00037728,2]
[359833489,1746363032611,-267.12771172,0.00037741,2]
[359833490,1746363032620,-267.12771172,0.00037755,2]
[359833491,1746363032630,-500.0,0.00037773,5]
[359833492,1746363032640,-500.0,0.00037773,5]
[359833493,1746363032649,-729.16,0.0003779,3]
[359833494,1746363032658,-11224.15726619,0.000378,2]
[359833495,1746363032668,-166876.77010543,0.000378,2]
[359833496,1746363032681,-12493.21031482,0.000378,2]
[359833497,1746363032711,-53.32882727,0.000378,2]
[359833522,1746363037800,-154.52213823,0.00025969,2]
[359833523,1746363037810,-154.52213823,0.00028679,2]
[359833524,1746363037819,-201.94896919,0.00030414,2]
[359833526,1746363037829,-162.0,0.00030414,2]
[359833528,1746363037838,-500.0,0.00030414,2]
[359833530,1746363037848,-300.11789025,0.00030414,2]
[359833532,1746363037857,-31.38929257,0.00030414,2]
[359833538,1746363037963,-213.78193231,0.00030414,2]
[359833540,1746363037975,-254.82877512,0.00030414,2]
[359833542,1746363037983,-213.01454832,0.00030414,2]
[359833544,1746363037995,-286.98545168,0.00030414,2]
[359833545,1746363038004,-500.0,0.00030414,2]
[359833546,1746363038013,-500.0,0.00030414,2]
[359833547,1746363038023,-500.0,0.00030414,2]
[359833548,1746363038031,-274.762587,0.00030414,2]
[359833549,1746363038041,-500.0,0.00030414,2]
[359833550,1746363038050,-500.0,0.00030414,2]
[359833551,1746363038060,-500.0,0.00030414,2]
[359833552,1746363038069,-500.0,0.00030414,2]
[359833553,1746363038079,-500.0,0.00030414,2]
[359833554,1746363038088,-299.96243071,0.00030414,2]
[359833555,1746363038097,-192.49939298,0.00030414,2]
[359833556,1746363038107,-500.0,0.00030414,2]
[359833557,1746363038116,-500.0,0.00030414,2]
[359833558,1746363038125,-500.0,0.00030414,2]
[359833559,1746363038134,-500.0,0.00030414,2]
[359833560,1746363038143,-500.0,0.00030414,2]
[359833561,1746363038152,-500.0,0.00030414,2]
[359833562,1746363038161,-500.0,0.00030414,2]
[359833563,1746363038170,-500.0,0.00030414,2]
[359833564,1746363038180,-500.0,0.00030414,2]
[359833565,1746363038190,-500.0,0.00030414,2]
[359833566,1746363038199,-500.0,0.00030414,2]
[359833567,1746363038208,-500.0,0.00030414,2]
[359833568,1746363038218,-500.0,0.00030414,2]
[359833569,1746363038227,-500.0,0.00030414,2]
[359833570,1746363038239,-500.0,0.00030414,2]
[359833571,1746363038250,-500.0,0.00030414,2]
[359833572,1746363038259,-500.0,0.00030414,2]
[359833573,1746363038269,-500.0,0.00030414,2]
[359833574,1746363038279,-500.0,0.00030414,2]
[359833575,1746363038288,-500.0,0.00030414,2]
[359833576,1746363038297,-500.0,0.00030414,2]
[359833577,1746363038306,-500.0,0.00030414,2]
[359833578,1746363038318,-500.0,0.00030414,2]
[359833579,1746363038328,-500.0,0.00030414,2]
[359833580,1746363038337,-500.0,0.00030414,2]
[359833581,1746363038346,-500.0,0.00030414,2]
[359833582,1746363038356,-500.0,0.00030414,2]
[359833583,1746363038366,-101467.91834482,0.000378,2]
[359833584,1746363038377,-152926.81902838,0.000378,2]
[359833585,1746363038388,-193214.79338919,0.000378,2]
[359833586,1746363038404,-54741.9822608,0.000378,2]
[359833609,1746363040273,-2800.09872807,0.000378,2]
[359833610,1746363040286,-9145.20456345,0.000378,2]
[359833611,1746363040298,-613.67346902,0.000378,2]
[359833612,1746363040309,-629.88762306,0.000378,2]
[359833613,1746363040327,-1502.70485532,0.000378,2]
[359833614,1746363040338,-714.78080813,0.000378,2]
[359834002,1746363044553,-8184.97505866,0.000378,2]
[359834004,1746363044565,-2952.02387336,0.000378,2]
[359834006,1746363044576,-227752.19368464,0.000378,2]
[359834008,1746363044586,-811.753239,0.00037855,4]
[359834011,1746363044598,-545.0,0.00038073,2]
[359834013,1746363044608,-500.0,0.00038204,60]
[359834015,1746363044618,-800.83835222,0.0003846,2]
[359834017,1746363044627,-630.4061023,0.00038587,2]
[359834019,1746363044637,-182.19332975,0.00038764,2]
[359834021,1746363044647,-500.0,0.00038773,5]
[359834023,1746363044656,-500.0,0.00038773,5]
[359834025,1746363044666,-108116.37719124,0.00038798,2]
[359834026,1746363044675,-333.01870165,0.00038804,2]
[359834028,1746363044684,-176.0,0.000389,15]
[359834030,1746363044693,-177.8,0.000389,30]
[359834032,1746363044702,-222.4738,0.00038903,15]
[359834034,1746363044712,-400.0,0.00038904,15]
[359834036,1746363044723,-500.0,0.00038904,15]